[Event "European Women's Chess Championship (49-84)"]
[Site "Batumi, Georgia"]
[Date "2026.05.25"]
[Round "1.76"]
[White "Ibrahimova, Sabina"]
[Black "Chanturia, Lika"]
[Result "1-0"]
[TimeControl "90min /40moves + 30min + 30-sec increment from move 1"]
[WhiteTitle "-"]
[BlackTitle "-"]
[WhiteFideId "13403893"]
[BlackFideId "13618857"]
[WhiteElo "2205"]
[BlackElo "1649"]

1. Nf3 {[%clk 01:30:47]} {[%emt 00:00:13]} Nf6 {[%clk 01:30:34]} {[%emt
00:00:26]} 2. c4 {[%clk 01:31:10]} {[%emt 00:00:07]} g6 {[%clk 01:28:44]}
{[%emt 00:02:20]} 3. Nc3 {[%clk 01:30:26]} {[%emt 00:01:14]} Bg7 {[%clk
01:28:52]} {[%emt 00:00:23]} 4. e4 {[%clk 01:30:21]} {[%emt 00:00:35]} d6
{[%clk 01:28:04]} {[%emt 00:01:17]} 5. d4 {[%clk 01:30:19]} {[%emt 00:00:32]}
Nc6 {[%clk 01:25:53]} {[%emt 00:02:41]} 6. d5 {[%clk 01:28:20]} {[%emt
00:02:30]} Nb8 {[%clk 01:19:26]} {[%emt 00:06:57]} 7. Be2 {[%clk 01:28:24]}
{[%emt 00:00:26]} a5 {[%clk 01:15:39]} {[%emt 00:04:17]} 8. O-O {[%clk
01:26:16]} {[%emt 00:02:38]} O-O {[%clk 01:15:25]} {[%emt 00:00:43]} 9. Be3
{[%clk 01:23:19]} {[%emt 00:03:26]} Na6 {[%clk 01:11:04]} {[%emt 00:04:52]} 10.
Qc2 {[%clk 01:17:20]} {[%emt 00:06:30]} e5 {[%clk 01:06:19]} {[%emt 00:05:14]}
11. dxe6 {[%clk 01:14:46]} {[%emt 00:03:04]} Bxe6 {[%clk 01:01:05]} {[%emt
00:05:44]} 12. Rad1 {[%clk 01:14:43]} {[%emt 00:00:34]} Qe7 {[%clk 00:56:57]}
{[%emt 00:04:38]} 13. Bg5 {[%clk 01:09:23]} {[%emt 00:05:49]} h6 {[%clk
00:51:05]} {[%emt 00:06:22]} 14. Bh4 {[%clk 01:09:20]} {[%emt 00:00:34]} Nc5
{[%clk 00:47:38]} {[%emt 00:03:56]} 15. Nd4 {[%clk 01:07:49]} {[%emt 00:02:01]}
g5 {[%clk 00:44:47]} {[%emt 00:03:21]} 16. Bg3 {[%clk 01:03:37]} {[%emt
00:04:41]} Bd7 {[%clk 00:40:18]} {[%emt 00:05:00]} 17. Rfe1 {[%clk 00:52:52]}
{[%emt 00:11:15]} Rfe8 {[%clk 00:14:28]} {[%emt 00:26:20]} 18. Bf1 {[%clk
00:42:23]} {[%emt 00:10:59]} Nh5 {[%clk 00:13:13]} {[%emt 00:01:45]} 19. Nd5
{[%clk 00:42:21]} {[%emt 00:00:32]} Qd8 {[%clk 00:13:10]} {[%emt 00:00:31]} 20.
Nf5 {[%clk 00:41:29]} {[%emt 00:01:23]} Bxf5 {[%clk 00:11:27]} {[%emt
00:02:14]} 21. exf5 {[%clk 00:41:54]} {[%emt 00:00:05]} Qd7 {[%clk 00:10:06]}
{[%emt 00:01:52]} 22. b3 {[%clk 00:38:35]} {[%emt 00:03:50]} Nf6 {[%clk
00:08:34]} {[%emt 00:02:01]} 23. Ne3 {[%clk 00:27:44]} {[%emt 00:11:21]} Nfe4
{[%clk 00:06:31]} {[%emt 00:02:34]} 24. Be2 {[%clk 00:24:30]} {[%emt 00:03:45]}
Nc3 {[%clk 00:05:12]} {[%emt 00:01:48]} 25. Rc1 {[%clk 00:24:37]} {[%emt
00:00:22]} Nxe2+ {[%clk 00:04:11]} {[%emt 00:01:31]} 26. Rxe2 {[%clk 00:24:16]}
{[%emt 00:00:52]} Ne4 {[%clk 00:03:20]} {[%emt 00:01:21]} 27. Rce1 {[%clk
00:21:15]} {[%emt 00:03:31]} Nc3 {[%clk 00:02:56]} {[%emt 00:00:53]} 28. Rd2
{[%clk 00:21:41]} {[%emt 00:00:05]} a4 {[%clk 00:03:10]} {[%emt 00:00:16]} 29.
b4 {[%clk 00:18:33]} {[%emt 00:03:38]} a3 {[%clk 00:03:01]} {[%emt 00:00:38]}
30. Rd3 {[%clk 00:17:08]} {[%emt 00:01:55]} Ne4 {[%clk 00:03:21]} {[%emt
00:00:11]} 31. Red1 {[%clk 00:16:49]} {[%emt 00:00:49]} Qa4 {[%clk 00:02:47]}
{[%emt 00:01:04]} 32. Rb3 {[%clk 00:16:24]} {[%emt 00:00:55]} Bb2 {[%clk
00:01:49]} {[%emt 00:01:29]} 33. Nd5 {[%clk 00:14:58]} {[%emt 00:01:54]} Qd7
{[%clk 00:01:35]} {[%emt 00:00:44]} 34. Rbd3 {[%clk 00:07:46]} {[%emt
00:07:42]} Rac8 {[%clk 00:01:14]} {[%emt 00:00:51]} 35. Ne3 {[%clk 00:07:06]}
{[%emt 00:01:10]} Qc6 {[%clk 00:01:21]} {[%emt 00:00:23]} 36. Qb3 {[%clk
00:03:19]} {[%emt 00:04:17]} Nf6 {[%clk 00:01:10]} {[%emt 00:00:42]} 37. h4
{[%clk 00:03:12]} {[%emt 00:00:37]} Re4 {[%clk 00:01:24]} {[%emt 00:00:16]} 38.
hxg5 {[%clk 00:01:47]} {[%emt 00:01:55]} hxg5 {[%clk 00:01:48]} {[%emt
00:00:06]} 39. f3 {[%clk 00:01:36]} {[%emt 00:00:41]} Re7 {[%clk 00:01:56]}
{[%emt 00:00:21]} 40. Bf2 {[%clk 00:01:32]} {[%emt 00:00:35]} Rce8 {[%clk
00:01:39]} {[%emt 00:00:46]} 41. c5 {[%clk 00:28:51]} {[%emt 00:03:12]} dxc5
{[%clk 00:24:38]} {[%emt 00:07:30]} 42. b5 {[%clk 00:28:10]} {[%emt 00:01:12]}
Qb6 {[%clk 00:21:15]} {[%emt 00:03:52]} 43. Nc4 {[%clk 00:27:51]} {[%emt
00:00:49]} Qa7 {[%clk 00:21:35]} {[%emt 00:00:11]} 44. Nxb2 {[%clk 00:23:39]}
{[%emt 00:04:43]} axb2 {[%clk 00:19:47]} {[%emt 00:02:17]} 45. Qxb2 {[%clk
00:23:18]} {[%emt 00:00:51]} Kg7 {[%clk 00:09:13]} {[%emt 00:11:03]} 46. Qc1
{[%clk 00:21:08]} {[%emt 00:02:41]} Nh7 {[%clk 00:06:09]} {[%emt 00:03:34]} 47.
Bxc5 {[%clk 00:20:06]} {[%emt 00:01:32]} Qxa2 {[%clk 00:06:22]} 48. Bxe7 {[%clk
00:18:26]} {[%emt 00:02:27]} Rxe7 {[%clk 00:06:48]} {[%emt 00:00:04]} 49. Qc3+
{[%clk 00:17:13]} {[%emt 00:01:43]} Nf6 {[%clk 00:06:01]} {[%emt 00:01:17]} 50.
Qc1 {[%clk 00:05:42]} {[%emt 00:12:01]} Nh7 {[%clk 00:05:07]} {[%emt 00:01:22]}
51. b6 {[%clk 00:05:41]} {[%emt 00:00:33]} Qa5 {[%clk 00:03:30]} {[%emt
00:02:07]} 52. Qb2+ {[%clk 00:02:51]} {[%emt 00:03:21]} Nf6 {[%clk 00:03:15]}
{[%emt 00:00:44]} 53. bxc7 {[%clk 00:02:42]} {[%emt 00:00:40]} Rxc7 {[%clk
00:03:05]} {[%emt 00:00:40]} 54. g4 {[%clk 00:01:07]} {[%emt 00:02:05]} Qc5+
{[%clk 00:02:24]} {[%emt 00:01:10]} 55. Kf1 {[%clk 00:00:37]} {[%emt 00:01:00]}
Qc4 {[%clk 00:01:10]} {[%emt 00:01:44]} 56. Qd2 {[%clk 00:00:40]} {[%emt
00:00:27]} Nh7 {[%clk 00:00:46]} {[%emt 00:00:54]} 57. Qe3 {[%clk 00:00:58]}
{[%emt 00:00:12]} Rd7 {[%clk 00:00:45]} {[%emt 00:00:31]} 58. Kg2 {[%clk
00:01:09]} {[%emt 00:00:19]} Rxd3 {[%clk 00:00:46]} 59. Rxd3 {[%clk 00:01:23]}
{[%emt 00:00:46]} Qc2+ {[%clk 00:00:52]} {[%emt 00:00:23]} 60. Rd2 {[%clk
00:01:45]} {[%emt 00:00:08]} Qc4 {[%clk 00:00:58]} {[%emt 00:00:25]} 61. Qe5+
{[%clk 00:01:48]} {[%emt 00:00:27]} Nf6 {[%clk 00:01:20]} {[%emt 00:00:08]} 62.
Rd6 {[%clk 00:01:55]} {[%emt 00:00:22]} Qc2+ {[%clk 00:01:26]} {[%emt
00:00:24]} 63. Kh3 {[%clk 00:02:11]} {[%emt 00:00:14]} 1-0

[Event "European Women's Chess Championship (49-84)"]
[Site "Batumi, Georgia"]
[Date "2026.05.25"]
[Round "1.77"]
[White "Ediberidze, Alexandra"]
[Black "Aydin, Gulenay"]
[Result "0-1"]
[TimeControl "90min /40moves + 30min + 30-sec increment from move 1"]
[WhiteTitle "-"]
[BlackTitle "-"]
[WhiteFideId "13636685"]
[BlackFideId "34557431"]
[WhiteElo "1638"]
[BlackElo "2204"]

1. d4 {[%clk 01:30:59]} Nf6 {[%clk 01:29:58]} {[%emt 00:01:02]} 2. Nc3 {[%clk
01:31:13]} {[%emt 00:00:15]} d5 {[%clk 01:30:11]} {[%emt 00:00:18]} 3. Bf4
{[%clk 01:31:33]} {[%emt 00:00:10]} e6 {[%clk 01:29:35]} {[%emt 00:01:05]} 4.
Nb5 {[%clk 01:31:26]} {[%emt 00:00:37]} Na6 {[%clk 01:29:55]} {[%emt 00:00:11]}
5. e3 {[%clk 01:31:34]} {[%emt 00:00:21]} Be7 {[%clk 01:29:34]} {[%emt
00:00:51]} 6. Nf3 {[%clk 01:29:36]} {[%emt 00:02:27]} O-O {[%clk 01:23:13]}
{[%emt 00:06:52]} 7. Bd3 {[%clk 01:21:45]} {[%emt 00:08:20]} c6 {[%clk
01:19:21]} {[%emt 00:04:22]} 8. Nc3 {[%clk 01:20:46]} {[%emt 00:01:29]} Qb6
{[%clk 01:19:08]} {[%emt 00:00:43]} 9. Rb1 {[%clk 01:12:02]} {[%emt 00:09:14]}
c5 {[%clk 01:15:56]} {[%emt 00:03:43]} 10. Bxa6 {[%clk 00:53:48]} {[%emt
00:18:43]} bxa6 {[%clk 01:00:47]} {[%emt 00:15:39]} 11. O-O {[%clk 00:50:55]}
{[%emt 00:03:23]} Bd7 {[%clk 00:57:29]} {[%emt 00:03:50]} 12. Ne5 {[%clk
00:46:11]} {[%emt 00:05:13]} Be8 {[%clk 00:56:40]} {[%emt 00:01:20]} 13. Re1
{[%clk 00:24:02]} {[%emt 00:22:39]} Rc8 {[%clk 00:54:58]} {[%emt 00:02:12]} 14.
a3 {[%clk 00:14:18]} {[%emt 00:10:14]} a5 {[%clk 00:46:06]} {[%emt 00:09:22]}
15. h3 {[%clk 00:13:36]} {[%emt 00:01:11]} Qb7 {[%clk 00:38:45]} {[%emt
00:07:52]} 16. Qd3 {[%clk 00:09:40]} {[%emt 00:04:23]} Ne4 {[%clk 00:29:41]}
{[%emt 00:09:36]} 17. Nxe4 {[%clk 00:04:07]} {[%emt 00:06:04]} dxe4 {[%clk
00:30:09]} {[%emt 00:00:02]} 18. Qb3 {[%clk 00:03:27]} {[%emt 00:01:09]} Qa6
{[%clk 00:29:41]} {[%emt 00:01:00]} 19. Rbc1 {[%clk 00:02:07]} {[%emt
00:01:48]} f6 {[%clk 00:24:12]} {[%emt 00:06:00]} 20. Ng4 {[%clk 00:02:32]}
{[%emt 00:00:05]} h5 {[%clk 00:19:53]} {[%emt 00:04:49]} 21. Nxf6+ gxf6 22. Bh6
{[%clk 00:01:31]} {[%emt 00:00:02]} a4 {[%clk 00:17:06]} {[%emt 00:00:22]} 23.
Qa2 {[%clk 00:01:38]} {[%emt 00:00:21]} Rf7 {[%clk 00:17:22]} {[%emt 00:00:15]}
24. Bf4 {[%clk 00:01:49]} {[%emt 00:00:19]} Rg7 {[%clk 00:17:02]} {[%emt
00:00:50]} 25. Kh1 {[%clk 00:02:12]} {[%emt 00:00:06]} Bf7 {[%clk 00:16:07]}
{[%emt 00:01:26]} 26. Qb1 {[%clk 00:02:28]} {[%emt 00:00:13]} Bd6 {[%clk
00:11:19]} {[%emt 00:05:20]} 27. Bxd6 {[%clk 00:02:44]} {[%emt 00:00:13]} Qxd6
{[%clk 00:11:47]} {[%emt 00:00:02]} 28. c3 {[%clk 00:02:58]} {[%emt 00:00:15]}
Qd5 {[%clk 00:11:22]} {[%emt 00:00:56]} 29. Rcd1 {[%clk 00:03:12]} {[%emt
00:00:15]} Qf5 {[%clk 00:11:17]} {[%emt 00:00:35]} 30. Qc2 {[%clk 00:03:16]}
{[%emt 00:00:25]} Kh8 {[%clk 00:11:34]} {[%emt 00:00:15]} 31. dxc5 {[%clk
00:03:34]} {[%emt 00:00:12]} Rcg8 {[%clk 00:11:47]} {[%emt 00:00:17]} 32. Rg1
{[%clk 00:03:52]} {[%emt 00:00:11]} Rxg2 {[%clk 00:11:57]} {[%emt 00:00:20]} 33.
Rxg2 {[%clk 00:04:11]} {[%emt 00:00:12]} Qxh3+ {[%clk 00:12:24]} {[%emt
00:00:04]} 34. Kg1 {[%clk 00:04:35]} {[%emt 00:00:05]} Qxg2# {[%clk 00:12:50]}
{[%emt 00:00:04]} 0-1

[Event "European Women's Chess Championship (49-84)"]
[Site "Batumi, Georgia"]
[Date "2026.05.25"]
[Round "1.78"]
[White "Antova, Gabriela"]
[Black "Asatiani, Natali"]
[Result "1-0"]
[TimeControl "90min /40moves + 30min + 30-sec increment from move 1"]
[WhiteTitle "-"]
[BlackTitle "-"]
[WhiteFideId "2915235"]
[BlackFideId "13636715"]
[WhiteElo "2203"]
[BlackElo "1603"]

1. d4 {[%clk 01:30:54]} {[%emt 00:00:06]} Nf6 {[%clk 01:30:51]} {[%emt
00:00:09]} 2. Nf3 {[%clk 01:31:16]} {[%emt 00:00:09]} e6 {[%clk 01:31:03]}
{[%emt 00:00:18]} 3. g3 {[%clk 01:21:55]} {[%emt 00:09:51]} d5 {[%clk
01:25:28]} {[%emt 00:06:05]} 4. Bg2 {[%clk 01:22:03]} {[%emt 00:00:21]} Bd6
{[%clk 01:19:38]} {[%emt 00:06:20]} 5. O-O {[%clk 01:21:56]} {[%emt 00:00:37]}
O-O {[%clk 01:19:26]} {[%emt 00:00:40]} 6. b3 {[%clk 01:20:32]} {[%emt
00:01:57]} b6 {[%clk 01:12:30]} {[%emt 00:07:26]} 7. c4 {[%clk 01:18:58]}
{[%emt 00:02:04]} Bb7 {[%clk 01:10:45]} {[%emt 00:02:15]} 8. Nc3 {[%clk
01:14:30]} {[%emt 00:04:58]} c5 {[%clk 01:02:46]} {[%emt 00:08:29]} 9. cxd5
{[%clk 01:03:16]} {[%emt 00:11:44]} exd5 {[%clk 00:46:23]} {[%emt 00:16:53]} 10.
Bg5 {[%clk 00:56:59]} {[%emt 00:06:47]} Be7 {[%clk 00:38:25]} {[%emt 00:08:29]}
11. Rc1 {[%clk 00:53:36]} {[%emt 00:03:52]} Na6 {[%clk 00:21:48]} {[%emt
00:17:07]} 12. dxc5 {[%clk 00:45:56]} {[%emt 00:08:10]} bxc5 {[%clk 00:21:34]}
{[%emt 00:00:44]} 13. Nh4 {[%clk 00:42:15]} {[%emt 00:04:11]} Qd7 {[%clk
00:16:43]} {[%emt 00:05:22]} 14. Bxf6 {[%clk 00:38:30]} {[%emt 00:04:14]} Bxf6
{[%clk 00:16:58]} {[%emt 00:00:15]} 15. Nxd5 {[%clk 00:38:11]} {[%emt
00:00:49]} Bd4 {[%clk 00:13:23]} {[%emt 00:04:04]} 16. Nc3 {[%clk 00:31:24]}
{[%emt 00:07:18]} Bxg2 {[%clk 00:09:32]} {[%emt 00:04:22]} 17. Nxg2 {[%clk
00:25:41]} {[%emt 00:06:12]} Qb7 {[%clk 00:04:21]} {[%emt 00:05:41]} 18. e3
{[%clk 00:24:16]} {[%emt 00:01:55]} Bf6 {[%clk 00:03:45]} {[%emt 00:01:05]} 19.
Qd5 {[%clk 00:23:40]} {[%emt 00:01:07]} Qc7 {[%clk 00:03:31]} {[%emt 00:00:44]}
20. Ne4 {[%clk 00:21:21]} {[%emt 00:02:48]} Be7 {[%clk 00:03:19]} {[%emt
00:00:43]} 21. Qc4 {[%clk 00:17:14]} {[%emt 00:04:36]} Qb7 {[%clk 00:03:21]}
{[%emt 00:00:28]} 22. Nf4 {[%clk 00:17:04]} {[%emt 00:00:39]} Rfd8 {[%clk
00:02:12]} {[%emt 00:01:39]} 23. Rfd1 {[%clk 00:15:50]} {[%emt 00:01:44]} Rxd1+
{[%clk 00:01:53]} {[%emt 00:00:50]} 24. Rxd1 {[%clk 00:16:14]} {[%emt
00:00:06]} Qb4 {[%clk 00:02:19]} {[%emt 00:00:04]} 25. Nd5 {[%clk 00:10:40]}
{[%emt 00:06:04]} Qxc4 {[%clk 00:01:30]} {[%emt 00:01:19]} 26. bxc4 {[%clk
00:10:21]} {[%emt 00:00:49]} Bf8 {[%clk 00:01:41]} {[%emt 00:00:18]} 27. Rb1
{[%clk 00:06:58]} {[%emt 00:03:54]} Rb8 {[%clk 00:01:56]} {[%emt 00:00:15]} 28.
Rb5 {[%clk 00:05:01]} {[%emt 00:02:28]} f5 {[%clk 00:01:35]} {[%emt 00:00:50]}
29. Nec3 {[%clk 00:04:22]} {[%emt 00:01:08]} Bd6 {[%clk 00:01:17]} {[%emt
00:00:49]} 30. Ra5 {[%clk 00:04:29]} {[%emt 00:00:23]} Nb4 {[%clk 00:00:55]}
{[%emt 00:00:51]} 31. Rxa7 {[%clk 00:04:41]} {[%emt 00:00:18]} Nxd5 {[%clk
00:00:49]} {[%emt 00:00:36]} 32. Nxd5 {[%clk 00:04:55]} {[%emt 00:00:16]} Kf8
{[%clk 00:00:49]} {[%emt 00:00:30]} 33. a4 {[%clk 00:04:38]} {[%emt 00:00:45]}
Rb1+ {[%clk 00:01:02]} {[%emt 00:00:19]} 34. Kg2 {[%clk 00:05:04]} {[%emt
00:00:04]} Rc1 {[%clk 00:01:18]} {[%emt 00:00:13]} 35. Nb6 {[%clk 00:05:07]}
{[%emt 00:00:27]} Rb1 {[%clk 00:01:04]} {[%emt 00:00:45]} 36. a5 {[%clk
00:05:22]} {[%emt 00:00:15]} Kg8 {[%clk 00:01:07]} {[%emt 00:00:27]} 37. Nd5
{[%clk 00:03:52]} {[%emt 00:02:00]} Rc1 {[%clk 00:01:27]} {[%emt 00:00:10]} 38.
Rd7 {[%clk 00:03:57]} {[%emt 00:00:25]} Be5 {[%clk 00:00:47]} {[%emt 00:01:09]}
39. a6 {[%clk 00:04:13]} {[%emt 00:00:15]} Ra1 {[%clk 00:01:11]} {[%emt
00:00:06]} 40. a7 {[%clk 00:04:33]} {[%emt 00:00:10]} Kf8 {[%clk 00:01:23]}
{[%emt 00:00:18]} 41. Rd8+ {[%clk 00:04:50]} {[%emt 00:00:14]} 1-0

[Event "European Women's Chess Championship (49-84)"]
[Site "Batumi, Georgia"]
[Date "2026.05.25"]
[Round "1.79"]
[White "Xing, Lida"]
[Black "Siekanska, Maria"]
[Result "0-1"]
[TimeControl "90min /40moves + 30min + 30-sec increment from move 1"]
[WhiteTitle "-"]
[BlackTitle "-"]
[WhiteFideId "13326171"]
[BlackFideId "21852650"]
[WhiteElo "1598"]
[BlackElo "2203"]

1. e4 {[%clk 01:30:58]} {[%emt 00:00:02]} c5 {[%clk 01:30:53]} {[%emt
00:00:07]} 2. Nf3 {[%clk 01:31:25]} {[%emt 00:00:04]} d6 {[%clk 01:31:14]}
{[%emt 00:00:08]} 3. d4 {[%clk 01:31:51]} {[%emt 00:00:04]} cxd4 {[%clk
01:31:36]} {[%emt 00:00:08]} 4. Nxd4 {[%clk 01:32:18]} {[%emt 00:00:05]} Nf6
{[%clk 01:31:56]} {[%emt 00:00:10]} 5. Nc3 {[%clk 01:32:42]} {[%emt 00:00:06]}
Nc6 {[%clk 01:31:05]} {[%emt 00:01:21]} 6. Bc4 {[%clk 01:32:51]} {[%emt
00:00:22]} e6 {[%clk 01:29:55]} {[%emt 00:01:40]} 7. Be3 {[%clk 01:29:36]}
{[%emt 00:03:45]} Be7 {[%clk 01:29:03]} {[%emt 00:01:21]} 8. Qe2 {[%clk
01:26:56]} {[%emt 00:03:10]} a6 {[%clk 01:25:04]} {[%emt 00:04:30]} 9. Bb3
{[%clk 01:27:05]} {[%emt 00:00:21]} Nxd4 {[%clk 01:24:43]} {[%emt 00:00:50]} 10.
Bxd4 {[%clk 01:27:27]} {[%emt 00:00:08]} b5 {[%clk 01:24:27]} {[%emt 00:00:46]}
11. O-O-O {[%clk 01:27:04]} {[%emt 00:00:53]} Bb7 {[%clk 01:22:21]} {[%emt
00:02:36]} 12. f4 {[%clk 01:23:14]} {[%emt 00:04:19]} b4 {[%clk 01:09:52]}
{[%emt 00:12:59]} 13. Na4 {[%clk 01:23:28]} {[%emt 00:00:16]} O-O {[%clk
01:07:54]} {[%emt 00:02:26]} 14. Nb6 {[%clk 01:13:57]} {[%emt 00:10:03]} Rb8
{[%clk 00:58:38]} {[%emt 00:09:46]} 15. Ba4 {[%clk 01:14:07]} {[%emt 00:00:20]}
Nxe4 {[%clk 00:45:15]} {[%emt 00:13:53]} 16. Nd7 {[%clk 01:13:45]} {[%emt
00:00:52]} Qa5 {[%clk 00:45:12]} {[%emt 00:00:32]} 17. b3 {[%clk 01:10:48]}
{[%emt 00:03:29]} Rbc8 {[%clk 00:36:58]} {[%emt 00:08:44]} 18. Qg4 {[%clk
01:08:38]} {[%emt 00:02:40]} g6 {[%clk 00:35:43]} {[%emt 00:01:43]} 19. Bb6
{[%clk 01:06:40]} {[%emt 00:02:29]} Qf5 {[%clk 00:30:55]} {[%emt 00:05:17]} 20.
Qxf5 {[%clk 01:07:02]} {[%emt 00:00:09]} gxf5 {[%clk 00:31:17]} {[%emt
00:00:08]} 21. Nxf8 {[%clk 01:07:22]} {[%emt 00:00:10]} Kxf8 {[%clk 00:31:07]}
{[%emt 00:00:41]} 22. Bd7 {[%clk 00:53:38]} {[%emt 00:14:14]} Rb8 {[%clk
00:29:35]} {[%emt 00:02:01]} 23. Bc7 {[%clk 00:53:17]} {[%emt 00:00:51]} Ra8
{[%clk 00:29:49]} {[%emt 00:00:15]} 24. Rd4 {[%clk 00:52:17]} {[%emt 00:01:32]}
a5 {[%clk 00:24:00]} {[%emt 00:06:20]} 25. Re1 {[%clk 00:46:26]} {[%emt
00:06:20]} Ra7 {[%clk 00:21:20]} {[%emt 00:03:11]} 26. Bb8 {[%clk 00:22:22]}
{[%emt 00:24:33]} Ra6 {[%clk 00:20:39]} {[%emt 00:01:11]} 27. Bb5 {[%clk
00:21:19]} {[%emt 00:01:34]} Ra8 {[%clk 00:20:22]} {[%emt 00:00:47]} 28. Bc7
{[%clk 00:17:06]} {[%emt 00:04:42]} Nc3 {[%clk 00:19:05]} {[%emt 00:01:46]} 29.
Bf1 {[%clk 00:16:14]} {[%emt 00:01:22]} Nd5 {[%clk 00:18:30]} {[%emt 00:01:05]}
30. Rxd5 {[%clk 00:09:23]} {[%emt 00:07:21]} Bxd5 {[%clk 00:18:45]} {[%emt
00:00:14]} 31. Rd1 {[%clk 00:07:27]} {[%emt 00:02:26]} a4 {[%clk 00:17:07]}
{[%emt 00:02:08]} 32. g3 {[%clk 00:05:47]} {[%emt 00:02:11]} axb3 {[%clk
00:16:43]} {[%emt 00:00:54]} 33. axb3 {[%clk 00:06:11]} {[%emt 00:00:05]} Rc8
{[%clk 00:16:40]} {[%emt 00:00:32]} 34. Ba5 {[%clk 00:05:48]} {[%emt 00:00:54]}
Bxb3 {[%clk 00:16:37]} {[%emt 00:00:33]} 35. Bd3 {[%clk 00:01:33]} {[%emt
00:04:46]} d5 {[%clk 00:14:47]} {[%emt 00:02:19]} 36. Kd2 {[%clk 00:01:27]}
{[%emt 00:00:35]} Bc4 {[%clk 00:14:41]} {[%emt 00:00:36]} 37. Rb1 {[%clk
00:01:32]} {[%emt 00:00:24]} Bxd3 {[%clk 00:12:29]} {[%emt 00:02:43]} 38. Kxd3
{[%clk 00:01:03]} {[%emt 00:01:00]} Rc3+ {[%clk 00:12:16]} {[%emt 00:00:41]} 39.
Kd2 {[%clk 00:01:19]} {[%emt 00:00:15]} Rc4 {[%clk 00:12:44]} {[%emt 00:00:03]}
40. c3 {[%clk 00:01:01]} {[%emt 00:00:48]} bxc3+ {[%clk 00:11:56]} {[%emt
00:01:17]} 41. Bxc3 {[%clk 00:01:22]} {[%emt 00:00:10]} d4 {[%clk 00:12:05]}
{[%emt 00:00:21]} 42. Ba1 {[%clk 00:01:09]} {[%emt 00:00:41]} Ra4 {[%clk
00:10:32]} {[%emt 00:02:04]} 43. Kd3 {[%clk 00:01:22]} {[%emt 00:00:16]} Ra3+
{[%clk 00:09:40]} {[%emt 00:01:23]} 44. Kd2 {[%clk 00:01:06]} {[%emt 00:00:46]}
Bb4+ {[%clk 00:04:56]} {[%emt 00:05:15]} 45. Rxb4 {[%clk 00:00:48]} {[%emt
00:00:48]} Rxa1 {[%clk 00:05:21]} {[%emt 00:00:05]} 46. Rxd4 {[%clk 00:01:14]}
{[%emt 00:00:05]} Ra2+ {[%clk 00:05:45]} {[%emt 00:00:05]} 47. Ke3 {[%clk
00:01:34]} {[%emt 00:00:09]} Rxh2 {[%clk 00:06:07]} {[%emt 00:00:08]} 48. Rd1
{[%clk 00:01:42]} {[%emt 00:00:21]} Ke7 {[%clk 00:06:08]} {[%emt 00:00:29]} 49.
Kf3 {[%clk 00:01:59]} {[%emt 00:00:13]} f6 {[%clk 00:04:25]} {[%emt 00:02:13]}
50. Re1 {[%clk 00:02:14]} {[%emt 00:00:16]} Kf7 {[%clk 00:04:21]} {[%emt
00:00:33]} 51. Re3 {[%clk 00:00:37]} {[%emt 00:02:08]} h6 {[%clk 00:02:08]}
{[%emt 00:02:43]} 52. Re1 {[%clk 00:00:57]} {[%emt 00:00:10]} h5 {[%clk
00:02:31]} {[%emt 00:00:06]} 53. Re3 {[%clk 00:01:10]} {[%emt 00:00:18]} h4
{[%emt 00:01:31]} 54. Re1 {[%clk 00:00:54]} Rh3 {[%clk 00:02:26]} {[%emt
00:00:19]} 55. Kf2 {[%clk 00:00:58]} {[%emt 00:00:27]} Rxg3 {[%clk 00:02:44]}
{[%emt 00:00:12]} 56. Rh1 {[%clk 00:01:19]} {[%emt 00:00:09]} Rg4 {[%clk
00:03:07]} {[%emt 00:00:07]} 0-1